lending/lending_fUSD_20241025
["ID","MTS","AMOUNT","RATE_DAILY","PERIOD"]
[340823869,1729879848340,-894.92,0.00063998,120]
[340823870,1729879848349,-533.12,0.00063998,120]
[340823871,1729879848358,-597.10409699,0.00063998,120]
[340823872,1729879848368,-728.51,0.00063998,120]
[340823873,1729879848377,-151.0,0.00063998,120]
[340823874,1729879848387,-1141.53,0.00063998,120]
[340823875,1729879848397,-821.18,0.00063998,120]
[340823876,1729879848406,-500.0,0.00063998,120]
[340823877,1729879848415,-500.0,0.00063998,120]
[340823878,1729879848425,-500.0,0.00063998,120]
[340823879,1729879848434,-500.0,0.00063998,120]
[340823880,1729879848444,-641.37,0.00063998,120]
[340823881,1729879848453,-500.0,0.00063998,120]
[340823882,1729879848462,-500.0,0.00063998,120]
[340823883,1729879848472,-500.0,0.00063998,120]
[340823884,1729879848481,-698.79,0.00063998,120]
[340823885,1729879848491,-500.0,0.00063998,120]
[340823886,1729879848500,-860.39,0.00063998,4]
[340823887,1729879848510,-502.45,0.00063998,120]
[340823888,1729879848519,-2335.34614155,0.00063999,30]
[340823889,1729879848532,-1000.0,0.00063999,120]
[340823890,1729879848541,-1000.0,0.00063999,120]
[340823891,1729879848550,-479.32,0.00063999,120]
[340823892,1729879848560,-271.27655765,0.00063999,120]
[340823893,1729879848569,-1448.27,0.00063999,120]
[340823894,1729879848579,-1448.27,0.00063999,120]
[340823895,1729879848589,-1448.27,0.00063999,120]
[340823896,1729879848598,-1448.27,0.00063999,120]
[340823897,1729879848609,-564.14,0.00063999,120]
[340823898,1729879848619,-564.14,0.00063999,120]
[340823899,1729879848628,-564.14,0.00063999,120]
[340823900,1729879848638,-564.14,0.00063999,120]
[340823901,1729879848648,-564.14,0.00063999,120]
[340823902,1729879848658,-523.09,0.00063999,120]
[340823903,1729879848669,-523.09,0.00063999,120]
[340823904,1729879848679,-523.09,0.00063999,120]
[340823905,1729879848689,-523.09,0.00063999,120]
[340823906,1729879848698,-500.0,0.00063999,120]
[340823907,1729879848709,-500.0,0.00063999,120]
[340823908,1729879848719,-500.0,0.00063999,120]
[340823909,1729879848729,-500.0,0.00063999,120]
[340823910,1729879848740,-500.0,0.00063999,120]
[340823911,1729879848750,-500.0,0.00063999,120]
[340823912,1729879848760,-500.0,0.00063999,120]
[340823913,1729879848770,-500.0,0.00063999,120]
[340823914,1729879848784,-500.0,0.00063999,120]
[340823915,1729879848795,-500.0,0.00063999,120]
[340823916,1729879848805,-500.0,0.00063999,120]
[340823917,1729879848816,-500.0,0.00063999,120]
[340823918,1729879848826,-500.0,0.00063999,120]
[340823919,1729879848836,-500.0,0.00063999,120]
[340823920,1729879848852,-623.36696919,0.00063999,120]
[340823921,1729879848862,-500.0,0.00063999,120]
[340823922,1729879848872,-500.0,0.00063999,120]
[340823923,1729879848883,-500.0,0.00063999,120]
[340823924,1729879848892,-500.0,0.00063999,120]
[340823925,1729879849006,-290.95659,0.00063999,120]
[340823926,1729879849019,-500.0,0.00063999,120]
[340823927,1729879849032,-233.85,0.00063999,120]
[340823928,1729879849042,-894.92,0.00063999,120]
[340823929,1729879849053,-894.92,0.00063999,120]
[340823930,1729879849063,-894.92,0.00063999,120]
[340823931,1729879849074,-894.92,0.00063999,120]
[340823932,1729879849085,-500.0,0.00063999,120]
[340823933,1729879849095,-500.0,0.00063999,120]
[340823934,1729879849105,-500.0,0.00063999,120]
[340823935,1729879849115,-500.0,0.00063999,120]
[340823936,1729879849125,-500.0,0.00063999,120]
[340823937,1729879849135,-151.0,0.00063999,120]
[340823938,1729879849145,-533.12,0.00063999,120]
[340823939,1729879849155,-533.12,0.00063999,120]
[340823940,1729879849165,-533.12,0.00063999,120]
[340823941,1729879849174,-533.12,0.00063999,120]
[340823942,1729879849184,-300.0,0.00063999,120]
[340823943,1729879849193,-300.0,0.00063999,120]
[340823944,1729879849203,-300.0,0.00063999,120]
[340823945,1729879849216,-300.0,0.00063999,120]
[340823946,1729879849226,-300.0,0.00063999,120]
[340823947,1729879849237,-151.0,0.00063999,120]
[340823948,1729879849249,-728.51,0.00063999,120]
[340823949,1729879849258,-728.51,0.00063999,120]
[340823950,1729879849268,-728.51,0.00063999,120]
[340823951,1729879849281,-728.51,0.00063999,120]
[340823952,1729879849291,-500.0,0.00063999,120]
[340823953,1729879849300,-500.0,0.00063999,120]
[340823954,1729879849310,-500.0,0.00063999,120]
[340823955,1729879849323,-500.0,0.00063999,120]
[340823956,1729879849333,-500.0,0.00063999,120]
[340823957,1729879849344,-652.13,0.00063999,120]
[340823958,1729879849356,-652.13,0.00063999,120]
[340823959,1729879849366,-652.13,0.00063999,120]
[340823960,1729879849375,-652.13,0.00063999,120]
[340823961,1729879849385,-1141.53,0.00063999,120]
[340823962,1729879849395,-652.13,0.00063999,120]
[340823963,1729879849405,-1141.53,0.00063999,120]
[340823964,1729879849416,-1141.53,0.00063999,120]
[340823965,1729879849425,-1141.53,0.00063999,120]
[340823966,1729879849434,-821.18,0.00063999,120]
[340823967,1729879849443,-821.18,0.00063999,120]
[340823968,1729879849453,-821.18,0.00063999,120]
[340823969,1729879849463,-821.18,0.00063999,120]
[340823970,1729879849473,-14184.97,0.00063999,120]
[340823971,1729879849483,-14184.97,0.00063999,120]
[340823972,1729879849493,-14184.97,0.00063999,120]
[340823973,1729879849503,-14184.97,0.00063999,120]
[340823974,1729879849512,-14184.97,0.00063999,120]
[340823975,1729879849524,-649.02,0.00063999,120]
[340823976,1729879849535,-649.02,0.00063999,120]
[340823977,1729879849544,-649.02,0.00063999,120]
[340823978,1729879849553,-649.02,0.00063999,120]
[340823979,1729879849563,-649.02,0.00063999,120]
[340823980,1729879849572,-500.0,0.00063999,120]
[340823981,1729879849582,-500.0,0.00063999,120]
[340823982,1729879849591,-500.0,0.00063999,120]
[340823983,1729879849601,-500.0,0.00063999,120]
[340823984,1729879849610,-500.0,0.00063999,120]
[340823985,1729879849619,-500.0,0.00063999,120]
[340823986,1729879849629,-500.0,0.00063999,120]
[340823987,1729879849639,-500.0,0.00063999,120]
[340823988,1729879849648,-500.0,0.00063999,120]
[340823989,1729879849657,-500.0,0.00063999,120]
[340823990,1729879849666,-500.0,0.00063999,120]
[340823991,1729879849676,-500.0,0.00063999,120]
[340823992,1729879849684,-1051.08,0.00063999,120]
[340823993,1729879849694,-1051.08,0.00063999,120]
[340823994,1729879849703,-1051.08,0.00063999,120]
[340823995,1729879849713,-500.0,0.00063999,120]
[340823996,1729879849722,-1051.08,0.00063999,120]
[340823997,1729879849732,-500.0,0.00063999,120]
[340823998,1729879849742,-1051.08,0.00063999,120]
[340823999,1729879849751,-500.0,0.00063999,120]
[340824000,1729879849761,-500.0,0.00063999,120]
[340824001,1729879849770,-500.0,0.00063999,21]
[340824002,1729879849780,-500.0,0.00063999,21]
[340824003,1729879849790,-500.0,0.00063999,21]
[340824004,1729879849799,-500.0,0.00063999,21]
[340824005,1729879849809,-500.0,0.00063999,21]
[340824006,1729879849819,-641.37,0.00063999,120]
[340824007,1729879849828,-641.37,0.00063999,120]
[340824008,1729879849838,-641.37,0.00063999,120]
[340824009,1729879849848,-641.37,0.00063999,120]
[340824010,1729879849858,-2814.21,0.00063999,120]
[340824011,1729879849867,-2814.21,0.00063999,120]
[340824012,1729879849876,-2814.21,0.00063999,120]
[340824013,1729879849887,-2814.21,0.00063999,120]
[340824014,1729879849896,-2814.21,0.00063999,120]
[340824015,1729879849905,-500.0,0.00063999,120]
[340824016,1729879849915,-500.0,0.00063999,120]
[340824017,1729879849924,-500.0,0.00063999,120]
[340824018,1729879849933,-500.0,0.00063999,120]
[340824019,1729879849942,-500.0,0.00063999,120]
[340824020,1729879849952,-500.0,0.00063999,120]
[340824021,1729879849961,-500.0,0.00063999,120]
[340824022,1729879849970,-500.0,0.00063999,120]
[340824023,1729879849980,-500.0,0.00063999,120]
[340824024,1729879849990,-500.0,0.00063999,120]
[340824025,1729879849999,-500.0,0.00063999,120]
[340824026,1729879850008,-500.0,0.00063999,120]
[340824027,1729879850018,-500.0,0.00063999,120]
[340824028,1729879850030,-500.0,0.00063999,120]
[340824029,1729879850040,-500.0,0.00063999,120]
[340824030,1729879850050,-500.0,0.00063999,120]
[340824031,1729879850059,-509.45,0.00063999,120]
[340824032,1729879850069,-500.0,0.00063999,120]
[340824033,1729879850078,-509.45,0.00063999,120]
[340824034,1729879850088,-509.45,0.00063999,120]
[340824035,1729879850097,-509.45,0.00063999,120]
[340824036,1729879850106,-509.45,0.00063999,120]
[340824037,1729879850116,-899.73,0.00063999,120]
[340824038,1729879850125,-899.73,0.00063999,120]
[340824039,1729879850134,-899.73,0.00063999,120]
[340824040,1729879850144,-500.0,0.00063999,120]
[340824041,1729879850154,-500.0,0.00063999,120]
[340824042,1729879850163,-899.73,0.00063999,120]
[340824043,1729879850173,-491.00778734,0.00063999,120]
[340824044,1729879850182,-899.73,0.00063999,120]
[340824045,1729879850191,-500.0,0.00063999,120]
[340824046,1729879850201,-500.0,0.00063999,120]
[340824047,1729879850210,-500.0,0.00063999,120]
[340824048,1729879850219,-500.0,0.00063999,120]
[340824049,1729879850229,-500.0,0.00063999,120]
[340824050,1729879850240,-730.66,0.00063999,120]
[340824051,1729879850250,-698.79,0.00063999,120]
[340824052,1729879850261,-730.66,0.00063999,120]
[340824053,1729879850272,-698.79,0.00063999,120]
[340824054,1729879850282,-730.66,0.00063999,120]
[340824055,1729879850291,-698.79,0.00063999,120]
[340824056,1729879850300,-730.66,0.00063999,120]
[340824057,1729879850309,-698.79,0.00063999,120]
[340824058,1729879850319,-730.66,0.00063999,120]
[340824059,1729879850331,-500.0,0.00063999,120]
[340824060,1729879850341,-500.0,0.00063999,120]
[340824061,1729879850351,-500.0,0.00063999,120]
[340824062,1729879850361,-500.0,0.00063999,120]
[340824063,1729879850370,-150.0,0.00063999,120]
[340824064,1729879850379,-860.39,0.00063999,4]
[340824065,1729879850389,-860.39,0.00063999,4]
[340824066,1729879850398,-860.39,0.00063999,4]
[340824067,1729879850407,-860.39,0.00063999,4]
[340824068,1729879850418,-502.45,0.00063999,120]
[340824069,1729879850427,-502.45,0.00063999,120]
[340824070,1729879850437,-502.45,0.00063999,120]
[340824071,1729879850446,-502.45,0.00063999,120]
[340824072,1729879850456,-2338.38,0.00063999,120]
[340824073,1729879850465,-2338.38,0.00063999,120]
[340824074,1729879850475,-2338.38,0.00063999,120]
[340824075,1729879850484,-2338.38,0.00063999,120]
[340824076,1729879850493,-2338.38,0.00063999,120]
[340824077,1729879850503,-1158.92,0.00063999,120]
[340824078,1729879850512,-1158.92,0.00063999,120]
[340824079,1729879850523,-1158.92,0.00063999,120]
[340824080,1729879850533,-1158.92,0.00063999,120]
[340824081,1729879850542,-1158.92,0.00063999,120]
[340824082,1729879850551,-1000.0,0.00064,120]
[340824083,1729879850562,-150.0,0.00064,120]
[340824084,1729879850572,-1000.0,0.00064,120]
[340824085,1729879850582,-1242.77786676,0.00064,120]
[340824086,1729879850591,-137091.40967456,0.00064,120]
[340824087,1729879850611,-500.0,0.00063689,120]
[340824088,1729879850620,-705.73081082,0.00064,120]
[340824089,1729879850631,-11426.96389211,0.00064,120]
[340824096,1729879916032,161.27,0.00015342,2]
[340824155,1729880708582,26612.50453114,0.00014,2]
[340824182,1729880958114,-2898.824908,0.00014,2]
[340824210,1729881031923,-217.0,0.00013999,2]
[340824211,1729881031932,-213.42011057,0.00014,2]
[340824212,1729881035866,-783.79,0.00014,2]
[340824227,1729881037880,-3448.9439325,0.00014,2]
[340824228,1729881037892,-1343.276,0.00014,2]
[340824229,1729881037960,-5387.24622083,0.00014,2]
[340824230,1729881037971,-2005.04143001,0.00014,2]
[340824231,1729881037982,-1870.07216721,0.00014,2]
[340824232,1729881038183,-560.60260402,0.00014,2]
[340824233,1729881038195,-869.24932403,0.00014,2]
[340824234,1729881038206,-660.83,0.00014,2]
[340824235,1729881038339,-335.775,0.00014,2]
[340824274,1729881039890,-32431.06422198,0.00014,2]
[340824275,1729881040054,-528.68414974,0.00014,2]
[340824276,1729881040076,-1003.93395174,0.00014,2]
[340824277,1729881040087,-724.8023,0.00014,2]
[340824278,1729881040099,-1086.85263,0.00014,2]
[340824279,1729881040170,-989.3284875,0.00014,2]
[340824280,1729881040182,-1095.03525,0.00014,2]
[340824281,1729881040194,-34023.59478827,0.00014,2]
[340824282,1729881040205,-457.572,0.00014,2]
[340824283,1729881040216,-1040.65927744,0.00014,2]
[340824307,1729881042974,-2468.89445541,0.00014,2]
[340824309,1729881042984,-16869.45545413,0.00015,2]
[340824310,1729881042996,-1929.99958927,0.00015,2]
[340824312,1729881043007,-3079.13639795,0.00015,2]
[340824313,1729881043018,-1386.11336147,0.00015,2]
[340824316,1729881043034,-1865.6266815,0.00015,2]
[340824317,1729881043045,-8865.77139268,0.00015,2]
[340824319,1729881043124,-13279.1052,0.00015,2]
[340824320,1729881043141,-393.66185859,0.00015,2]
[340824394,1729881045843,-33669.46239999,0.00015,2]
[340824423,1729881045939,-19118.73405602,0.00015,2]
[340824427,1729881045949,-35933.69512192,0.00042,2]
[340824432,1729881045958,-7382.18679171,0.00042,2]
[340824436,1729881045968,-6580.99197203,0.000426,5]
[340824439,1729881045977,-200.0,0.000429,15]
[340824443,1729881045987,-304.82095202,0.00042936,2]
[340824446,1729881045996,-177.54,0.00043026,2]
[340824451,1729881046006,-255.7304964,0.00043035,31]
[340824456,1729881046017,-960.37,0.00043036,2]
[340824459,1729881046027,-264.2,0.00043036,2]
[340824461,1729881046038,-11245.32889011,0.00043036,2]
[340824463,1729881046048,-170.84230137,0.00043036,2]
[340824466,1729881046058,-1255.32086227,0.00043036,4]
[340824469,1729881046068,-6000.0,0.00043036,2]
[340824473,1729881046079,-958.20570001,0.00043036,4]
[340824476,1729881046089,-1016.14252073,0.00043036,2]
[340824479,1729881046099,-4744.53903414,0.00043036,2]
[340824482,1729881046109,-14386.73931433,0.00043036,2]
[340824486,1729881046122,-553.8550383,0.00043036,2]
[340824489,1729881046132,-150.0,0.00043036,2]
[340824493,1729881046142,-1502.92567968,0.00043036,2]
[340824497,1729881046151,-270494.05025891,0.00043036,2]
[340824500,1729881046160,-616.10021296,0.00043036,2]
[340824503,1729881046169,-211.20346253,0.00043036,2]
[340824507,1729881046180,-136888.08046963,0.00043036,2]
[340824511,1729881046190,-442.19199442,0.00043036,2]
[340824515,1729881046200,-1049.66596016,0.00043036,2]
[340824518,1729881046209,-2500.0,0.00043036,2]
[340824523,1729881046219,-569.87843868,0.00043036,2]
[340824525,1729881046228,-2339.84039201,0.00043036,2]
[340824529,1729881046237,-530.14778099,0.00043036,2]
[340824532,1729881046247,-139539.09313611,0.00043036,2]
[340824536,1729881046259,-120939.90486938,0.00043036,2]
[340824539,1729881046269,-897.44773935,0.00043036,2]
[340824542,1729881046278,-473.76079233,0.00043036,2]
[340824545,1729881046287,-320.46479908,0.00043036,2]
[340824548,1729881046297,-538.67576314,0.00043036,2]
[340824551,1729881046305,-358.67537111,0.00043036,2]
[340824554,1729881046315,-278.93212341,0.00043036,2]
[340824556,1729881046324,-572.81998345,0.00043036,2]
[340824559,1729881046333,-6629.42920949,0.00043036,4]
[340824564,1729881046346,-5088.21867099,0.00043036,4]
[340824567,1729881046355,-1018.05894923,0.00043036,2]
[340824570,1729881046367,-216.63371142,0.00043036,2]
[340824572,1729881046378,-209.42433083,0.00043036,2]
[340824575,1729881046387,-515.45856071,0.00043036,14]
[340824578,1729881046397,-1039.0,0.00043036,2]
[340824582,1729881046407,-1406.61208093,0.00043036,2]
[340824585,1729881046417,-7186.92,0.00043037,2]
[340824587,1729881046426,-526.39,0.00043037,2]
[340824590,1729881046435,-1338.47,0.00043037,2]
[340824594,1729881046445,-289.459,0.00044537,2]
[340824596,1729881046454,-304.820952,0.00045067,2]
[340824599,1729881046463,-184.91,0.00045208,2]
[340824602,1729881046472,-304.820952,0.00047197,2]
[340824604,1729881046482,-304.820952,0.00049328,2]
[340824606,1729881046491,-500.0,0.00049743,2]
[340824608,1729881046500,-153.65,0.0005,120]
[340824610,1729881046509,-1567.69,0.00050201,2]
[340824612,1729881046518,-161.52,0.0005189,10]
[340824614,1729881046528,-167.71,0.0005189,10]
[340824615,1729881046537,-6353.44983041,0.000519,120]
[340824617,1729881046546,-150.0,0.000524,2]
[340824620,1729881046556,-150.0,0.000524,90]
[340824622,1729881046567,-1893.68,0.000524,2]
[340824624,1729881046576,-329.54,0.00054714,2]
[340824626,1729881046585,-250.0,0.00055299,120]
[340824628,1729881046594,-627.42,0.00056122,30]
[340824630,1729881046603,-184.42,0.00056122,2]
[340824632,1729881046615,-2501.13605099,0.00056941,120]
[340824634,1729881046624,-329.54,0.00056978,2]
[340824636,1729881046633,-178.8,0.00057179,2]
[340824638,1729881046642,-150.0,0.00058228,2]
[340824640,1729881046651,-188.839,0.00058395,115]
[340824642,1729881046660,-853.09,0.00058395,2]
[340824644,1729881046669,-155.37,0.00058633,2]
[340824646,1729881046679,-157.0,0.00058633,2]
[340824648,1729881046688,-194.27,0.00058653,2]
[340824650,1729881046697,-349.48,0.00058947,2]
[340824652,1729881046706,-329.54,0.00059241,2]
[340824654,1729881046716,-500.0,0.00059452,120]
[340824656,1729881046727,-500.0,0.00059452,120]
[340824657,1729881046736,-500.0,0.00059452,120]
[340824659,1729881046745,-500.0,0.00059452,120]
[340824661,1729881046754,-500.0,0.00059452,120]
[340824663,1729881046764,-500.0,0.00059452,120]
[340824665,1729881046773,-500.0,0.00059452,120]
[340824667,1729881046782,-500.0,0.00059452,120]
[340824669,1729881046792,-500.0,0.00059452,120]
[340824671,1729881046801,-500.0,0.00059452,120]
[340824673,1729881046811,-500.0,0.00059452,120]
[340824675,1729881046820,-500.0,0.00059452,120]
[340824677,1729881046830,-500.0,0.00059452,120]
[340824679,1729881046839,-500.0,0.00059452,120]
[340824681,1729881046848,-327.2974648,0.00059452,120]
[340824683,1729881046858,-1062.66,0.00059452,120]
[340824685,1729881046873,-1062.66,0.00059452,120]
[340824687,1729881046882,-1062.66,0.00059452,120]
[340824689,1729881046891,-1062.66,0.00059452,120]
[340824691,1729881046901,-500.0,0.00059452,120]
[340824693,1729881046910,-500.0,0.00059452,120]
[340824695,1729881046919,-500.0,0.00059452,120]
[340824696,1729881046928,-465.81778756,0.00059452,120]
[340824698,1729881046937,-500.0,0.00059452,120]
[340824700,1729881046947,-500.0,0.00059452,120]
[340824702,1729881046956,-500.0,0.00059452,120]
[340824704,1729881046965,-500.0,0.00059452,120]
[340824706,1729881046974,-500.0,0.00059452,120]
[340824708,1729881046983,-520.50982397,0.00059452,120]
[340824710,1729881046992,-500.0,0.00059452,120]
[340824712,1729881047001,-500.0,0.00059452,120]
[340824714,1729881047010,-500.0,0.00059452,120]
[340824728,1729881047131,-500.0,0.00059452,120]
[340824729,1729881047140,-3573.48,0.00059543,2]
[340824732,1729881047150,-2722.87,0.0005957,2]
[340824734,1729881047159,-250.0,0.00059577,120]
[340824736,1729881047168,-1720.62,0.00059703,2]
[340824737,1729881047178,-23890.0,0.00059815,2]
[340824740,1729881047188,-500.0,0.000599,21]
[340824742,1729881047198,-1744.71786197,0.00059963,14]
[340824744,1729881047209,-262.2252,0.00059973,2]
[340824746,1729881047219,-2792.9768,0.00059973,2]
[340824748,1729881047228,-5234.15358591,0.0005999,14]
[340824750,1729881047237,-619.88,0.0006,120]
[340824752,1729881047247,-1834.78562814,0.0006,120]
[340824754,1729881047256,-2000.0,0.0006,2]
[340824756,1729881047265,-4000.0,0.0006,120]
[340824758,1729881047274,-7155.49092997,0.0006,2]
[340824760,1729881047283,-34465.28266274,0.0006,60]
[340824762,1729881047293,-1078.19,0.0006,120]
[340824764,1729881047303,-150.0,0.00060021,2]
[340824766,1729881047312,-200.0,0.00060021,2]
[340824768,1729881047321,-200.0,0.00060021,30]
[340824770,1729881047330,-1000.0,0.00060062,120]
[340824772,1729881047340,-17447.1786197,0.00060063,14]
[340824774,1729881047349,-153.65,0.00060063,120]
[340824776,1729881047358,-6671.3772,0.00060073,2]
[340824777,1729881047370,-10518.8806,0.00060073,2]
[340824779,1729881047379,-292.9882,0.00060073,2]
[340824781,1729881047389,-44984.4784,0.00060073,2]
[340824783,1729881047398,-806.02659551,0.00060173,15]
[340824785,1729881047407,-289.22054764,0.00060222,15]
[340824787,1729881047416,-500.0,0.00060222,2]
[340824789,1729881047425,-257.51,0.00060253,120]
[340824791,1729881047434,-8723.58930985,0.00060263,14]
[340824793,1729881047443,-500.0,0.00060273,120]
[340824795,1729881047452,-233.800548,0.00060273,120]
[340824797,1729881047461,-500.0,0.00060273,120]
[340824799,1729881047471,-500.0,0.00060273,120]
[340824801,1729881047480,-1000.0,0.00060273,120]
[340824803,1729881047489,-500.0,0.00060273,120]
[340824805,1729881047498,-504.12058176,0.00060273,120]
[340824807,1729881047507,-500.0,0.00060273,120]
[340824809,1729881047517,-500.0,0.00060273,120]
[340824811,1729881047527,-500.0,0.00060273,120]
[340824812,1729881047536,-506.15208538,0.00060273,120]
[340824814,1729881047547,-500.0,0.00060273,120]
[340824815,1729881047556,-500.0,0.00060273,120]
[340824816,1729881047566,-500.0,0.00060273,120]
[340824817,1729881047576,-500.0,0.00060273,120]
[340824818,1729881047585,-500.0,0.00060273,120]
[340824819,1729881047594,-500.0,0.00060273,120]
[340824820,1729881047603,-503.62336945,0.00060273,120]
[340824821,1729881047612,-542.08420435,0.00060273,120]
[340824822,1729881047621,-500.0,0.00060273,120]
[340824823,1729881047630,-500.0,0.00060273,120]
[340824824,1729881047639,-500.0,0.00060273,120]
[340824825,1729881047648,-500.0,0.00060273,120]
[340824826,1729881047658,-459.93812465,0.00060273,120]
[340824827,1729881047667,-500.0,0.00060273,120]
[340824828,1729881047676,-500.0,0.00060273,120]
[340824829,1729881047686,-500.0,0.00060273,120]
[340824830,1729881047695,-500.0,0.00060273,120]
[340824831,1729881047704,-500.0,0.00060273,120]
[340824832,1729881047714,-500.0,0.00060273,120]
[340824833,1729881047727,-501.51290583,0.00060273,120]
[340824834,1729881047736,-515.85120231,0.00060273,120]
[340824835,1729881047745,-506.2612499,0.00060273,120]
[340824836,1729881047754,-150.0,0.00060273,120]
[340824837,1729881047763,-217.36987673,0.00060273,120]
[340824838,1729881047772,-500.0,0.00060273,120]
[340824839,1729881047781,-500.0,0.00060273,120]
[340824840,1729881047790,-500.0,0.00060273,120]
[340824841,1729881047799,-500.0,0.00060273,120]
[340824842,1729881047808,-253.71808288,0.00060273,120]
[340824843,1729881047816,-500.0,0.00060273,120]
[340824844,1729881047825,-500.0,0.00060273,120]
[340824845,1729881047834,-500.0,0.00060273,120]
[340824846,1729881047843,-500.0,0.00060273,120]
[340824847,1729881047853,-1286.23,0.00060273,120]
[340824848,1729881047862,-500.0,0.00060273,120]
[340824849,1729881047871,-1286.23,0.00060273,120]
[340824850,1729881047880,-500.0,0.00060273,120]
[340824851,1729881047889,-1286.23,0.00060273,120]
[340824852,1729881047900,-1286.23,0.00060273,120]
[340824853,1729881047909,-500.0,0.00060273,120]
[340824854,1729881047920,-500.0,0.00060273,120]
[340824855,1729881047932,-500.0,0.00060273,120]
[340824856,1729881047942,-500.0,0.00060273,120]
[340824857,1729881047952,-500.0,0.00060273,120]
[340824858,1729881047961,-500.0,0.00060273,120]
[340824859,1729881047970,-500.0,0.00060273,120]
[340824860,1729881047980,-500.0,0.00060273,120]
[340824861,1729881047989,-500.0,0.00060273,120]
[340824862,1729881047998,-500.0,0.00060273,120]
[340824863,1729881048008,-643.66,0.00060273,120]
[340824864,1729881048017,-643.66,0.00060273,120]
[340824865,1729881048026,-643.66,0.00060273,120]
[340824866,1729881048035,-643.66,0.00060273,120]
[340824867,1729881048044,-279.81665803,0.0006028,120]
[340824868,1729881048054,-500.0,0.00060379,120]
[340824869,1729881048064,-806.02659546,0.00060698,15]
[340824870,1729881048072,-500.0,0.00060744,120]
[340824871,1729881048082,-1744.71786197,0.00060888,14]
[340824872,1729881048091,-1744.71786197,0.00060898,14]
[340824873,1729881048101,-500.0,0.00060898,120]
[340824874,1729881048110,-500.0,0.00060898,120]
[340824875,1729881048120,-500.0,0.00060898,120]
[340824876,1729881048129,-500.0,0.00060898,120]
[340824877,1729881048138,-500.0,0.00060898,120]
[340824878,1729881048147,-500.0,0.00060898,120]
[340824879,1729881048156,-410.99336014,0.00060898,120]
[340824880,1729881048165,-500.0,0.00060898,120]
[340824881,1729881048174,-500.0,0.00060898,120]
[340824882,1729881048183,-500.0,0.00060898,120]
[340824883,1729881048193,-506.73726043,0.00060898,120]
[340824884,1729881048202,-150.0,0.00060898,120]
[340824885,1729881048211,-155.760364,0.00060898,120]
[340824886,1729881048220,-500.0,0.00060902,120]
[340824887,1729881048229,-1000.0,0.00060908,2]
[340824888,1729881048239,-2500.0,0.00060908,2]
[340824889,1729881048256,-163.08,0.00061013,2]
[340824890,1729881048265,-177.04,0.00061108,120]
[340824891,1729881048274,-178.74,0.00061162,2]
[340824892,1729881048283,-806.02659546,0.00061223,15]
[340824893,1729881048293,-1744.71786197,0.00061306,14]
[340824894,1729881048303,-299.829,0.00061316,120]
[340824895,1729881048312,-150.0,0.0006139,120]
[340824896,1729881048321,-329.54,0.00061505,2]
[340824897,1729881048330,-994.63420847,0.00061592,2]
[340824898,1729881048340,-152.0,0.000616,107]
[340824899,1729881048349,-167.0,0.0006173,2]
[340824900,1729881048358,-500.0,0.00061736,120]
[340824901,1729881048368,-806.02659546,0.00061749,15]